fUSD/lending_fUSD_20241206
["ID","MTS","AMOUNT","RATE_DAILY","PERIOD"]
[344438237,1733459432766,-2585.0,7e-05,2]
[344438238,1733459432789,-952.2934576,7e-05,2]
[344438239,1733459432812,-7804.57606835,7e-05,2]
[344438242,1733459438249,-1209.45923089,6.999e-05,2]
[344438243,1733459438261,-713.90804684,6.999e-05,2]
[344438244,1733459438309,-462.13383494,6.999e-05,2]
[344438245,1733459438319,-121.79782034,7e-05,2]
[344438246,1733459438331,-518.27444512,7e-05,2]
[344438247,1733459438479,-5683.92812213,7e-05,2]
[344438248,1733459438491,-6576.06235579,7e-05,2]
[344438249,1733459438538,-1374.20533368,7e-05,2]
[344438250,1733459438596,-628.19546237,7e-05,2]
[344438251,1733459438609,-617.34847781,7e-05,2]
[344438255,1733459440307,-560.22822521,7e-05,2]
[344438256,1733459440318,-253.94130098,7e-05,2]
[344438257,1733459440444,-289.06290041,7e-05,2]
[344438258,1733459440456,-974.365,7e-05,2]
[344438259,1733459440468,-906.39504603,7e-05,2]
[344438260,1733459440591,-2263.41957,7e-05,2]
[344438261,1733459440602,-1526.265,7e-05,2]
[344438262,1733459440621,-608.81346951,7e-05,2]
[344438266,1733459443420,-250.0,6.832e-05,2]
[344438267,1733459443430,-1036.17146076,7e-05,2]
[344438268,1733459443442,-630.92391286,7e-05,2]
[344438269,1733459443491,-227625.0,7e-05,2]
[344438270,1733459443503,-194236.0,7e-05,2]
[344438271,1733459443514,-20857.15337481,7e-05,2]
[344438272,1733459443530,-642.98596465,7e-05,2]
[344438273,1733459443603,-642.16823064,7e-05,2]
[344438274,1733459443615,-608.98120472,7e-05,2]
[344438275,1733459443734,-1072.42122714,7e-05,2]
[344438276,1733459443746,-5025.01392384,7e-05,2]
[344438278,1733459447013,-3609.92367057,7e-05,2]
[344438279,1733459447046,-974.175,7e-05,2]
[344438280,1733459447058,-626.72811819,7e-05,2]
[344438281,1733459447069,-630.67626793,7e-05,2]
[344438282,1733459447096,-19532.1234081,7e-05,2]
[344438283,1733459447239,-4809.393968,7e-05,2]
[344438325,1733460428339,-250.0,6.293e-05,2]
[344438326,1733460428361,-783.95892269,6.335e-05,2]
[344438327,1733460453132,-2152.75107731,6.335e-05,2]
[344438328,1733460453154,-1222.86,6.335e-05,2]
[344438329,1733460453175,-261.32986647,6.335e-05,2]
[344438331,1733460548128,-5195.24632958,6.269e-05,2]
[344438336,1733460631575,-250.0,6.212e-05,2]
[344438337,1733460631585,-18704.75367042,6.269e-05,2]
[344438338,1733460631595,-644.43,6.269e-05,2]
[344438339,1733460631604,-6076.0,6.335e-05,2]
[344438340,1733460631614,-1036.95013353,6.335e-05,2]
[344438341,1733460631624,-360.0,6.418e-05,2]
[344438342,1733460631634,-200.0,6.592e-05,2]
[344438343,1733460631643,-502.0,6.63e-05,2]
[344438344,1733460631653,-150.0,6.797e-05,2]
[344438345,1733460631664,-150.0,6.877e-05,2]
[344438346,1733460631673,-2500.0,6.9e-05,2]
[344438347,1733460631683,-3192.0,6.93e-05,2]
[344438348,1733460631692,-500.0,6.973e-05,2]
[344438349,1733460631701,-3483.8559336,6.99e-05,2]
[344438350,1733460631712,-2046.7614135,6.992e-05,2]
[344438351,1733460631724,-2091.4871006,6.995e-05,2]
[344438352,1733460631734,-2136.2127877,6.995e-05,2]
[344438353,1733460631743,-2180.9384747,6.995e-05,2]
[344438354,1733460631754,-3559.9849095,6.995e-05,2]
[344438355,1733460631763,-3636.1138854,6.995e-05,2]
[344438356,1733460631772,-3712.2428613,6.995e-05,2]
[344438357,1733460631781,-150.0,6.997e-05,2]
[344438358,1733460631790,-3505.122,6.998e-05,2]
[344438359,1733460631800,-180.10739639,6.998e-05,2]
[344438360,1733460631810,-300.0,6.998e-05,3]
[344438361,1733460631820,-300.0,6.998e-05,3]
[344438362,1733460631830,-300.0,6.998e-05,3]
[344438363,1733460631839,-300.0,6.998e-05,3]
[344438364,1733460631848,-300.0,6.998e-05,3]
[344438365,1733460631857,-300.0,6.998e-05,3]
[344438367,1733460631867,-300.0,6.998e-05,2]
[344438370,1733460631878,-300.0,6.998e-05,2]
[344438372,1733460631888,-300.0,6.998e-05,2]
[344438373,1733460631897,-300.0,6.998e-05,2]
[344438374,1733460631906,-300.0,6.998e-05,2]
[344438375,1733460631917,-300.0,6.998e-05,2]
[344438376,1733460631926,-1192.75055634,6.999e-05,2]
[344438378,1733460631935,-1233.96,6.999e-05,2]
[344438380,1733460631944,-735.0,7e-05,2]
[344438382,1733460631954,-324708.9272029,7e-05,2]
[344438510,1733460632633,-14124.93862814,7e-05,2]
[344438523,1733460632701,-1635.2877827,7e-05,2]
[344438528,1733460632718,-1428.20139994,7e-05,2]
[344438840,1733460637481,-1501.26519847,7e-05,2]
[344438841,1733460637493,-6129.23202408,7e-05,2]
[344438842,1733460637504,-590.18487266,7e-05,2]
[344438843,1733460637636,-18563.41908228,7e-05,2]
[344438844,1733460637661,-2807.87605367,7e-05,2]
[344438845,1733460637672,-1520.0,7e-05,2]
[344438846,1733460637837,-456.96703165,7e-05,2]
[344438881,1733460639570,-663.0,7e-05,2]
[344438883,1733460639579,-25.88999997,7e-05,2]
[344438897,1733460639705,-4689.27496882,7e-05,2]
[344438920,1733460642425,-596.37527817,6.999e-05,2]
[344438921,1733460642435,-46.46331463,7e-05,2]
[344438922,1733460642536,-7828.96,7e-05,2]
[344438923,1733460642546,-5931.16991218,7e-05,2]
[344438924,1733460642558,-20105.88794869,7e-05,2]
[344438925,1733460642570,-14883.77877534,7e-05,2]
[344438926,1733460643558,-1644.06496566,7e-05,2]
[344438927,1733460643569,-12848.10139249,7e-05,2]
[344438928,1733460643580,-624.66458905,7e-05,2]
[344438929,1733460643591,-323.00358808,7e-05,2]
[344438930,1733460643628,-5715.97426431,7e-05,2]
[344438931,1733460643639,-3507.70000966,7e-05,2]
[344438932,1733460645549,-597.0,7e-05,2]
[344438933,1733460645559,-14411.7284762,7e-05,2]
[344438934,1733460645685,-2651.942222,7e-05,2]
[344438935,1733460645745,-899.49431137,7e-05,2]
[344438938,1733461554475,-200.0,6.357e-05,2]
[344438939,1733461554496,-675.17109064,6.397e-05,2]
[344438940,1733461632157,-250.0,6.281e-05,2]
[344438941,1733461632180,-300.0,6.396e-05,2]
[344438942,1733461632202,-47.95086285,6.397e-05,2]
[344438949,1733461831955,-1615.000004,6.397e-05,2]
[344439043,1733461837704,-255.0,6.397e-05,2]
[344439044,1733461837734,-7108.07516094,6.397e-05,2]
[344439045,1733461837978,-653.67901261,6.397e-05,2]
[344439048,1733461839714,-5207.1430494,6.397e-05,2]
[344439049,1733461839726,-1959.9408265,6.397e-05,2]
[344439050,1733461839746,-468.53062598,6.397e-05,2]
[344439051,1733461839797,-252.019395,6.397e-05,2]
[344439061,1733461842747,-1416.05463251,6.397e-05,2]
[344439062,1733461842810,-4241.43533957,6.397e-05,2]
[344439063,1733461842820,-1495.61888387,6.42e-05,2]
[344439064,1733461842832,-257.68599764,6.42e-05,2]
[344439065,1733461842844,-988.47511849,6.42e-05,2]
[344439066,1733461842853,-640.0,6.452e-05,2]
[344439067,1733461842863,-250.0,6.463e-05,2]
[344439068,1733461842873,-180.0,6.781e-05,2]
[344439069,1733461842884,-500.0,6.795e-05,2]
[344439070,1733461842894,-167.39857216,6.9e-05,2]
[344439071,1733461843164,-666.96,6.9e-05,2]
[344439072,1733461843175,-1665.64142784,6.9e-05,2]
[344439073,1733461843185,-500.0,6.973e-05,2]
[344439074,1733461843194,-649.52773191,6.988e-05,2]
[344439075,1733461843205,-899.1724913,6.988e-05,2]
[344439076,1733461843214,-2020.71,6.99e-05,2]
[344439077,1733461843224,-495.1740781,6.993e-05,2]
[344439078,1733461843233,-498.7225568,6.995e-05,2]
[344439079,1733461843242,-502.2710355,6.995e-05,2]
[344439080,1733461843252,-505.8195143,6.995e-05,2]
[344439081,1733461843261,-1005.3959774,6.995e-05,2]
[344439082,1733461843270,-1111.6194634,6.995e-05,2]
[344439083,1733461843280,-1217.8429494,6.995e-05,2]
[344439084,1733461843289,-150.0,6.997e-05,2]
[344439085,1733461843298,-300.0,6.998e-05,2]
[344439089,1733461843625,-300.0,6.998e-05,2]
[344439090,1733461843635,-300.0,6.998e-05,2]
[344439091,1733461843644,-300.0,6.998e-05,2]
[344439092,1733461843653,-300.0,6.998e-05,2]
[344439093,1733461843663,-300.0,6.998e-05,2]
[344439094,1733461843672,-300.0,6.998e-05,3]
[344439095,1733461843682,-300.0,6.998e-05,3]
[344439096,1733461843692,-300.0,6.998e-05,3]
[344439097,1733461843702,-300.0,6.998e-05,3]
[344439098,1733461843714,-300.0,6.998e-05,3]
[344439099,1733461843723,-300.0,6.998e-05,3]
[344439100,1733461843733,-1182.54,6.999e-05,2]
[344439101,1733461843743,-10000.0,6.999e-05,2]
[344439102,1733461843753,-30000.0,6.999e-05,2]
[344439103,1733461843762,-180.107,7e-05,2]
[344439104,1733461843772,-42766.29668768,7e-05,2]
[344439105,1733461843843,-18629.09722375,7e-05,2]
[344439106,1733461843855,-524.27346429,7e-05,2]
[344439109,1733461845619,-2514.82659901,7e-05,2]
[344439110,1733461845678,-610.19735718,7e-05,2]
[344439111,1733461845755,-2500.0,6e-05,2]
[344439112,1733461845765,-36319.9082082,7e-05,2]
[344439113,1733461845810,-106.03172416,7e-05,2]
[344439114,1733461845914,-4835.75156,7e-05,2]
[344439115,1733461845926,-286.338,7e-05,2]
[344439117,1733461965143,-5100.0,6.1e-05,2]
[344439118,1733461965169,-200.0,6.148e-05,2]
[344439119,1733461965195,-300.0,6.199e-05,2]
[344439120,1733461965221,-7600.0,6.2e-05,2]
[344439121,1733461965246,-250.0,6.208e-05,2]
[344439122,1733461965273,-10200.0,6.3e-05,2]
[344439123,1733461965303,-11350.0,6.4e-05,2]
[344439124,1733461996048,-1350.0,6.4e-05,2]
[344439125,1733461996081,-164.69,6.419e-05,2]
[344439126,1733461996109,-2485.31,6.5e-05,2]
[344439127,1733462062479,148972.08176578,0.0002,120]
[344439128,1733462062507,280000.0,0.0002,120]
[344439129,1733462062539,291759.01031992,0.0002,120]
[344439130,1733462062576,72552.77586502,0.0002,120]
[344439131,1733462062608,572851.33301176,0.0002,120]
[344439132,1733462062640,15000000.0,0.0002,120]
[344439133,1733462062674,16000000.0,0.0002,120]
[344439134,1733462086401,-23900.0,6.277e-05,2]
[344439135,1733462086428,-100.0,6.292e-05,2]
[344439136,1733462117762,-611.98,6.249e-05,2]
[344439137,1733462117790,-888.02,6.292e-05,2]
[344439138,1733462139135,151.21,4.978e-05,2]
[344439139,1733462188657,3393.69,6.108e-05,2]
[344439140,1733462208682,452.0,6.132e-05,2]
[344439141,1733462210697,2722.96,6.132e-05,2]
[344439142,1733462292100,250.0,6.056e-05,2]
[344439143,1733462327523,500.0,6.056e-05,2]
[344439144,1733462392541,205.32,6.071e-05,2]
[344439145,1733462393864,5197.22,6.12e-05,2]
[344439146,1733462403049,155.0,6.292e-05,30]
[344439147,1733462403358,155.0,0.00011061,30]
[344439148,1733462415936,500.0,6e-05,2]
[344439149,1733462418329,1000.0,6.1e-05,2]
[344439150,1733462420169,1500.0,6.2e-05,2]
[344439151,1733462465318,1435.72,6.016e-05,2]
[344439152,1733462516195,163.8,5.977e-05,2]
[344439153,1733462519404,166.81,6.156e-05,2]
[344439154,1733462525098,8631.96,5.964e-05,2]
[344439155,1733462548471,2964.84,5.959e-05,2]
[344439156,1733462552437,1500.0,5.959e-05,2]
[344439157,1733462574337,200.0,5.959e-05,2]
[344439158,1733462640544,752.18,5.95e-05,2]
[344439159,1733462702179,155.0,6.292e-05,30]
[344439160,1733462702492,155.0,0.0001424,30]
[344439161,1733462733170,-200.0,6.249e-05,2]
[344439162,1733462733194,-336.8,6.301e-05,2]
[344439163,1733462733217,-164.69,6.301e-05,2]
[344439164,1733462733239,-336.8,6.535e-05,2]
[344439165,1733462733265,-164.69,6.612e-05,2]
[344439166,1733462733288,-336.8,6.768e-05,2]
[344439167,1733462733312,-150.0,6.791e-05,2]
[344439168,1733462733337,-2357.70109669,6.792e-05,2]
[344439169,1733462734869,1101.83,6.138e-05,2]
[344439170,1733462798996,151.21,4.927e-05,2]
[344439171,1733462825095,-250.0,6.261e-05,2]
[344439172,1733462825115,-21.64843674,6.301e-05,2]
[344439173,1733462833707,158.0,6.178e-05,2]
[344439174,1733462836110,1100.0,6e-05,2]
[344439175,1733462838170,2200.0,6.1e-05,2]
[344439176,1733462840379,3400.0,6.2e-05,2]
[344439177,1733462842085,-308.51889232,6.206e-05,2]
[344439178,1733462850135,-11709.57675561,6.206e-05,2]
[344439185,1733462954175,447.0,6.028e-05,2]
[344439186,1733462960967,527.75,6.028e-05,2]
[344439187,1733463002819,156.0,6.292e-05,30]
[344439194,1733463031884,-300.0,6.205e-05,2]
[344439195,1733463031893,-11881.90435207,6.206e-05,2]
[344439196,1733463031902,-4500.0,6.3e-05,2]
[344439197,1733463031911,-4049.46189445,6.3e-05,2]
[344439198,1733463031920,-146.75156326,6.301e-05,2]
[344439199,1733463031929,-5600.0,6.4e-05,2]
[344439200,1733463031938,-1100.0,6.5e-05,2]
[344439201,1733463031947,-1100.0,6.6e-05,2]
[344439202,1733463031957,-168.4,6.612e-05,2]
[344439203,1733463031965,-1100.0,6.7e-05,2]
[344439204,1733463031975,-150.0,6.723e-05,2]
[344439205,1733463031984,-88678.91116801,6.724e-05,2]
[344439206,1733463031995,-37625.35500104,6.724e-05,2]
[344439207,1733463032007,-4869.75813706,6.724e-05,2]
[344439208,1733463032023,-7260.97569389,6.724e-05,2]
[344439209,1733463032032,-150.0,6.791e-05,2]
[344439210,1733463032044,-1100.0,6.8e-05,2]
[344439211,1733463032055,-420.0,6.826e-05,2]
[344439212,1733463032065,-452.0,6.899e-05,2]
[344439213,1733463032075,-500.0,6.9e-05,2]
[344439214,1733463032085,-2500.0,6.9e-05,2]
[344439215,1733463032095,-1540.0,6.9e-05,2]
[344439216,1733463032104,-1000.0,6.9e-05,2]
[344439217,1733463032114,-1000.0,6.9e-05,2]
[344439218,1733463032124,-1000.0,6.9e-05,2]
[344439219,1733463032133,-164.69,6.923e-05,2]
[344439220,1733463032142,-168.4,6.923e-05,2]
[344439221,1733463032151,-1341.97110611,6.929e-05,2]
[344439222,1733463032171,-451.51504875,6.929e-05,2]
[344439225,1733463037975,-1010.61184514,6.929e-05,2]
[344439226,1733463037984,-7758.78820746,6.957e-05,2]
[344439227,1733463037996,-2241.21179254,6.957e-05,2]
[344439228,1733463038005,-500.0,6.973e-05,2]
[344439229,1733463038015,-629.4401369,6.99e-05,2]
[344439230,1733463038024,-1117.1613005,6.99e-05,2]
[344439231,1733463038033,-746.6409595,6.99e-05,2]
[344439232,1733463038044,-629.4401369,6.995e-05,2]
[344439233,1733463038055,-629.4401369,6.995e-05,2]
[344439234,1733463038064,-629.4401369,6.995e-05,2]
[344439235,1733463038073,-836.66483462,6.995e-05,2]
[344439236,1733463038104,-280.49646588,6.995e-05,2]
[344439237,1733463038113,-1117.1613005,6.995e-05,2]
[344439238,1733463038122,-1117.1613005,6.995e-05,2]
[344439239,1733463038131,-811.0484996,6.995e-05,2]
[344439240,1733463038141,-875.4560397,6.995e-05,2]
[344439241,1733463038151,-939.8635797,6.995e-05,2]
[344439242,1733463038160,-300.0,6.998e-05,3]
[344439243,1733463038170,-300.0,6.998e-05,3]
[344439244,1733463038179,-300.0,6.998e-05,3]
[344439245,1733463038189,-300.0,6.998e-05,3]
[344439246,1733463038198,-300.0,6.998e-05,3]
[344439247,1733463038207,-300.0,6.998e-05,3]
[344439248,1733463038217,-300.0,6.998e-05,2]
[344439249,1733463038227,-300.0,6.998e-05,2]
[344439250,1733463038236,-300.0,6.998e-05,2]
[344439251,1733463038246,-300.0,6.998e-05,2]
[344439252,1733463038255,-300.0,6.998e-05,2]
[344439253,1733463038265,-300.0,6.998e-05,2]
[344439254,1733463038274,-300.0,6.998e-05,2]
[344439255,1733463038284,-300.0,6.998e-05,3]
[344439256,1733463038294,-1937.07133802,6.999e-05,2]
[344439257,1733463038304,-1133.27,6.999e-05,2]
[344439258,1733463038313,-82577.74,6.999e-05,2]
[344439259,1733463038327,-50039.90240106,7e-05,2]
[344439285,1733463040294,-981.2698052,7e-05,2]
[344439287,1733463040307,-422.61307325,7e-05,2]
[344439288,1733463040319,-4788.9483575,7e-05,2]
[344439289,1733463040350,-21435961.5029334,7e-05,2]
[344439290,1733463040359,-3490266.92788871,7e-05,2]
[344439291,1733463040369,-65885853.67995429,7e-05,2]
[344439292,1733463040380,-8606232.72,7e-05,2]
[344439293,1733463040392,-1821158.295,7e-05,2]
[344439294,1733463040403,-2252851.10892,7e-05,2]
[344439295,1733463040435,-981.09,7e-05,2]
[344439296,1733463040450,-68503.35159706,7e-05,2]
[344439297,1733463042874,-1444.18550301,7e-05,2]
[344439298,1733463042992,-3139.16570886,7e-05,2]
[344439302,1733463046108,-977.94601775,7e-05,2]
[344439303,1733463046120,-781.63001409,7e-05,2]
[344439304,1733463046131,-1475.1739779,7e-05,2]
[344439305,1733463046194,-9708.026942,7e-05,2]
[344439306,1733463046262,-1006.8,7e-05,2]
[344439307,1733463211615,700.0,6e-05,2]
[344439308,1733463213920,1500.0,6.1e-05,2]
[344439309,1733463215797,2300.0,6.2e-05,2]
[344439311,1733463264685,164.82,6.051e-05,2]
[344439312,1733463276383,500.0,6e-05,2]
[344439313,1733463278497,1000.0,6.1e-05,2]
[344439314,1733463280590,1500.0,6.2e-05,2]
[344439315,1733463281432,593.54,6.031e-05,2]
[344439316,1733463329974,150.0,5.955e-05,2]
[344439317,1733463408075,250.0,5.928e-05,2]
[344439318,1733463429931,152.39,4.825e-05,2]
[344439319,1733463430091,152.39,5.308e-05,2]
[344439320,1733463430190,152.39,5.79e-05,2]
[344439325,1733463440239,13830.83,5.882e-05,2]
[344439326,1733463576802,156.96127287,6.031e-05,30]
[344439333,1733463937102,-250.0,5.715e-05,2]
[344439334,1733463937122,-154.75892579,5.76e-05,2]
[344439335,1733464028098,-45.24107421,5.76e-05,2]
[344439336,1733464028120,-988.7202079,5.797e-05,2]
[344439337,1733464042117,-511.2797921,5.797e-05,2]
[344439338,1733464042138,-250.0,5.797e-05,2]
[344439339,1733464042162,-3682.95653208,5.882e-05,2]
[344439340,1733464065924,152.39,4.566e-05,2]
[344439343,1733464152383,-423.0279575,5.642e-05,2]
[344439344,1733464162083,-799.8320425,5.642e-05,2]
[344439345,1733464162107,-152.39,5.708e-05,2]
[344439346,1733464162128,-1001.6508842,5.76e-05,2]
[344439347,1733464162151,-271.2,5.797e-05,2]
[344439348,1733464162171,-261.32,5.797e-05,2]
[344439349,1733464162193,-6386.21346792,5.882e-05,2]
[344439350,1733464162213,-393.33,5.882e-05,2]
[344439351,1733464162234,-490.63,5.882e-05,2]
[344439352,1733464162254,-150.0,6e-05,2]
[344439353,1733464162276,-900.0,6e-05,2]
[344439354,1733464162298,-150.0,6.031e-05,2]
[344439355,1733464162320,-204.69217327,6.031e-05,2]
[344439356,1733464162342,-1105.22003411,6.1e-05,2]
[344439357,1733464174110,-23900.0,5.819e-05,2]
[344439358,1733464174132,-794.77996589,6.1e-05,2]
[344439359,1733464174154,-2515.39533411,6.2e-05,2]
[344439382,1733464232155,-384.60466589,6.2e-05,2]
[344439383,1733464232166,-150.0,6.276e-05,2]
[344439384,1733464232175,-3900.0,6.3e-05,2]
[344439385,1733464232184,-170.36,6.301e-05,2]
[344439386,1733464232194,-168.4,6.301e-05,2]
[344439387,1733464232203,-300.0,6.399e-05,2]
[344439388,1733464232213,-4900.0,6.4e-05,2]
[344439389,1733464232222,-366.0,6.466e-05,2]
[344439390,1733464232232,-900.0,6.5e-05,2]
[344439391,1733464232242,-271.2,6.522e-05,2]
[344439392,1733464232251,-170.36,6.535e-05,2]
[344439393,1733464232261,-634.0,6.584e-05,2]
[344439394,1733464232271,-900.0,6.6e-05,2]
[344439395,1733464232282,-252.94,6.637e-05,2]
[344439396,1733464232292,-4314.16637235,6.665e-05,2]
[344439397,1733464232423,-2692.25606094,6.665e-05,2]
[344439398,1733464232435,-2369.57756671,6.665e-05,2]
[344439399,1733464232444,-150.0,6.699e-05,2]
[344439400,1733464232454,-1000.0,6.7e-05,2]
[344439401,1733464232463,-2500.0,6.7e-05,2]
[344439402,1733464232473,-900.0,6.7e-05,2]
[344439403,1733464232482,-176.35,6.714e-05,2]
[344439404,1733464232492,-831.43316982,6.74e-05,2]
[344439412,1733464232620,-978.07,6.74e-05,2]
[344439415,1733464232636,-433.77483018,6.74e-05,2]
[344439418,1733464232647,-170.36,6.768e-05,2]
[344439421,1733464232657,-500.0,6.773e-05,2]
[344439424,1733464232666,-1000.0,6.78e-05,2]
[344439425,1733464232676,-1000.0,6.78e-05,2]
[344439427,1733464232686,-1000.0,6.78e-05,2]
[344439429,1733464232699,-633.0,6.78e-05,2]
[344439431,1733464232708,-1000.0,6.78e-05,3]
[344439432,1733464232719,-1000.0,6.78e-05,2]
[344439434,1733464232728,-1000.0,6.78e-05,2]
[344439436,1733464232739,-1000.0,6.79e-05,2]
[344439437,1733464232748,-1000.0,6.79e-05,2]
[344439439,1733464232758,-1000.0,6.79e-05,2]
[344439441,1733464232769,-1000.0,6.79e-05,2]
[344439443,1733464232779,-1311.0,6.79e-05,2]
[344439445,1733464232790,-1000.0,6.79e-05,3]
[344439446,1733464232800,-1000.0,6.79e-05,3]
[344439448,1733464232813,-1000.0,6.79e-05,3]
[344439450,1733464232822,-1000.0,6.79e-05,2]
[344439451,1733464232832,-1000.0,6.79e-05,2]
[344439453,1733464232841,-1000.0,6.79e-05,2]
[344439455,1733464232851,-1000.0,6.79e-05,2]
[344439457,1733464232860,-1000.0,6.79e-05,2]
[344439458,1733464232870,-1000.0,6.79e-05,2]
[344439459,1733464232880,-1000.0,6.79e-05,2]
[344439460,1733464232889,-1000.0,6.79e-05,2]
[344439461,1733464232899,-1000.0,6.79e-05,2]
[344439462,1733464232909,-57058.25974252,6.8e-05,2]
[344439507,1733464240541,-4858.26002071,6.8e-05,2]
[344439510,1733464240564,-11209.64840294,6.8e-05,2]
[344439513,1733464240587,-592.49622237,6.8e-05,2]
[344439517,1733464240631,-695.43,6.8e-05,2]
[344439522,1733464243149,-500.0,6.773e-05,2]
[344439523,1733464243159,-9035.7135776,6.8e-05,2]
[344439524,1733464243319,-22132.04556841,6.8e-05,2]
[344439525,1733464243331,-11980.76577762,6.8e-05,2]
[344439526,1733464243343,-935392.04029111,6.8e-05,2]
[344439527,1733464243355,-413589.98222652,6.8e-05,2]
[344439528,1733464243365,-900.0,6.8e-05,2]
[344439529,1733464243374,-152.39,6.849e-05,2]
[344439530,1733464243384,-1659.0,6.9e-05,2]
[344439531,1733464243394,-477.8961092,6.93e-05,2]
[344439532,1733464243403,-209.813379,6.989e-05,2]
[344439533,1733464243412,-541.1369867,6.989e-05,2]
[344439534,1733464243422,-209.813379,6.995e-05,2]
[344439535,1733464243431,-300.0,6.998e-05,2]
[344439537,1733464243440,-300.0,6.998e-05,2]
[344439539,1733464243449,-300.0,6.998e-05,2]
[344439541,1733464243457,-300.0,6.998e-05,2]
[344439543,1733464243467,-300.0,6.998e-05,2]
[344439545,1733464243476,-300.0,6.998e-05,2]
[344439547,1733464243485,-300.0,6.998e-05,2]
[344439549,1733464243494,-300.0,6.998e-05,3]
[344439550,1733464243503,-300.0,6.998e-05,3]
[344439551,1733464243512,-300.0,6.998e-05,3]
[344439552,1733464243522,-300.0,6.998e-05,3]
[344439553,1733464243531,-300.0,6.998e-05,3]
[344439554,1733464243541,-300.0,6.998e-05,3]
[344439555,1733464243550,-300.0,6.998e-05,3]
[344439556,1733464243561,-100000.0,6.999e-05,2]
[344439557,1733464243570,-1086.05,6.999e-05,2]
[344439558,1733464243579,-2478888.99815516,7e-05,2]
[344439563,1733464246037,-3392.18267919,7e-05,2]
[344439564,1733464246048,-4407.48,7e-05,2]
[344439565,1733464246127,-281.00881241,7e-05,2]
[344439566,1733464246230,-3795.64476265,7e-05,2]
[344439573,1733465136631,-1053.43254236,6.085e-05,2]
[344439574,1733465247592,-446.56745764,6.085e-05,2]
[344439575,1733465247614,-300.0,6.111e-05,2]
[344439576,1733465247638,-236.02059135,6.112e-05,2]
[344439577,1733465311317,-10000.0,6.112e-05,2]
[344439587,1733465432416,-13663.97940865,6.112e-05,2]
[344439588,1733465432426,-250.0,6.132e-05,2]
[344439589,1733465432435,-2936.71,6.148e-05,2]
[344439590,1733465432444,-250.0,6.172e-05,2]
[344439591,1733465432454,-330.08,6.211e-05,2]
[344439592,1733465432463,-200.0,6.267e-05,2]
[344439593,1733465432472,-170.36,6.301e-05,2]
[344439594,1733465432482,-167.25,6.653e-05,2]
[344439595,1733465432491,-1000.0,6.7e-05,2]
[344439596,1733465432500,-1574.0,6.724e-05,2]
[344439597,1733465432509,-150.0,6.754e-05,2]
[344439598,1733465432519,-137.70921949,6.9e-05,2]
[344439599,1733465432530,-2362.29078051,6.9e-05,2]
[344439600,1733465432539,-330.08,6.988e-05,2]
[344439601,1733465432549,-50.62922024,6.988e-05,2]
[344439602,1733465432600,-615.0,6.988e-05,2]
[344439603,1733465432616,-173.62429606,6.988e-05,2]
[344439604,1733465432627,-341.62399731,6.988e-05,2]
[344439605,1733465432638,-397.91945619,6.988e-05,2]
[344439606,1733465432647,-150.0,6.997e-05,2]
[344439608,1733465432656,-300.0,6.998e-05,3]
[344439610,1733465432666,-150.1191911,6.998e-05,3]
[344439612,1733465432677,-149.8808089,6.998e-05,3]
[344439614,1733465432686,-300.0,6.998e-05,3]
[344439616,1733465432696,-300.0,6.998e-05,3]
[344439618,1733465432704,-226.67170819,6.998e-05,3]
[344439620,1733465432719,-73.32829181,6.998e-05,3]
[344439621,1733465432728,-300.0,6.998e-05,3]
[344439622,1733465432738,-300.0,6.998e-05,2]
[344439623,1733465432747,-300.0,6.998e-05,2]
[344439624,1733465432756,-300.0,6.998e-05,2]
[344439625,1733465432765,-300.0,6.998e-05,2]
[344439626,1733465432774,-300.0,6.998e-05,2]
[344439627,1733465432783,-263.10333822,6.998e-05,2]
[344439628,1733465432794,-36.89666178,6.998e-05,2]
[344439629,1733465432803,-300.0,6.998e-05,2]
[344439630,1733465432812,-300.0,6.998e-05,3]
[344439631,1733465432821,-1794.622,6.999e-05,2]
[344439632,1733465432830,-1040.8,6.999e-05,2]
[344439633,1733465432840,-212.18133822,7e-05,2]
[344439634,1733465432851,-979.8268842,7e-05,2]
[344439635,1733465438220,-500.0,6.973e-05,2]